{"text_format":"3","workbook":"xlsx","n_sheets":1,"sheets":["RT76-2019 PRICING SCHEDULE"],"not_rendered":{"images":1,"defined_names":1},"read":"whole","date_system":"1900"}

{"sheet":"RT76-2019 PRICING SCHEDULE","index":0,"n_rows":94,"n_cols":25,"rows_kept":94,"merged":[[1,3,2,5],[2,19,2,24]]}
[]
[{"$nulls":3},"RT76-2026: SUPPLY AND DELIVERY OF MEDICAL EXAMINATION AND SURGICAL GLOVES TO THE STATE "]
[{"$nulls":19},"COST BREAKDOWN %"]
["#","ITEM NUMBER","ITEM CATEGORIES","ITEM DESCRIPTION ","UNIT OF MEASURE","OFFER OPTION","BIDDER NAME","DELIVERY PRICE IN ZAR INCL. VAT 15%","BRAND NAME","SUPPLIER PRODUCT CODE","NAME OF MANUFACTURER","COUNTY OF ORIGIN","LOCAL CONTENT % (Locally Sourced Materials) ","LOCAL PRODUCTION PROCESS % (Fabricated, processed or assembled in RSA)","AVERAGE % FOR LOCAL CONTENT AND PRODUCTION %","IMPORT CONTENT IN %","FOREIGN CURRENCY NAME","MINIMUM ORDER QUANTITRY","LEAD TIME (CALENDER DAYS)","D1 -Imported Raw Material / Finished product (if applicable)","D2 - Local Raw Material / Finished product (if applicable)","D3 – Labour","D4 – Transport","D5 – Overheads","TOTAL"]
[1,"RT76-01-001","Examination Goves","Glove, examination, non-sterile, type 1(gloves made primarily from natural rubber latex),\nsingle use, Powder free, Ambidextrous. To comply with the latest issue of SANS 11193-1. \nBox of 100 gloves. \nSize:  Small\n","Box of 100","Offer 1",{"$nulls":8},{"$f":"AVERAGE(M5:N5)","v":{"$error":"#DIV/0!"}}]
[2,"RT76-01-002","Examination Goves","Glove, examination, non-sterile, type 1(gloves made primarily from natural rubber latex),\nsingle use. Powder free, Ambidextrous. To comply with the latest issue of SANS 11193-1\nBox of 100 gloves. \nSize:  Medium\n","Box of 100","Offer 1",{"$nulls":8},{"$f":"AVERAGE(M6:N6)","v":{"$error":"#DIV/0!"}}]
[3,"RT76-01-003","Examination Goves","Glove, examination, non-sterile, type 1(gloves made primarily from natural rubber latex),\nsingle use. Powder free, Ambidextrous. To comply with the latest issue of SANS 11193-1\nBox of 100 gloves. \nSize:  Large\n","Box of 100","Offer 1",{"$nulls":8},{"$error":"#DIV/0!"}]
[4,"RT76-01-004","Examination Goves","Glove, examination, non-sterile, type 1(gloves made primarily from natural rubber latex),\nsingle use. Powder free, Ambidextrous. To comply with the latest issue of SANS 11193-1.\nBox of 100 gloves.\nSize:  X-Large\n","Box of 100","Offer 1",{"$nulls":8},{"$error":"#DIV/0!"}]
[5,"RT76-01-005","Examination Goves","Glove, examination, non-sterile, type 2 (gloves made primarily from nitrile rubber latex, polychloroprene rubber latex, styrene-butadiene rubber solution, styrene-butadiene rubber emulsion or thermoplastic-elastomer solution), single use. Powder free, Ambidextrous. To comply with the latest issue of SANS 11193-1. \nBox of 100 gloves.\nSize: Small","Box of 100","Offer 1",{"$nulls":8},{"$error":"#DIV/0!"}]
[6,"RT76-01-006","Examination Goves","Glove, examination, non-sterile, type 2 (gloves made primarily from nitrile rubber latex, polychloroprene rubber latex, styrene-butadiene rubber solution, styrene-butadiene rubber emulsion or thermoplastic-elastomer solution), single use. Powder free, Ambidextrous. To comply with the latest issue of SANS 11193-1. \nBox of 100 gloves.\nSize: Medium","Box of 100","Offer 1",{"$nulls":8},{"$error":"#DIV/0!"}]
[7,"RT76-01-007","Examination Goves","Glove, examination, non-sterile, type 2 (gloves made primarily from nitrile rubber latex, polychloroprene rubber latex, styrene-butadiene rubber solution, styrene-butadiene rubber emulsion or thermoplastic-elastomer solution), single use. Powder free, Ambidextrous. To comply with the latest issue of SANS 11193-1. \nBox of 100 gloves.\nSize: Large","Box of 100","Offer 1",{"$nulls":8},{"$error":"#DIV/0!"}]
[8,"RT76-01-008","Examination Goves","Glove, examination, non-sterile, type 2 (gloves made primarily from nitrile rubber latex, polychloroprene rubber latex, styrene-butadiene rubber solution, styrene-butadiene rubber emulsion or thermoplastic-elastomer solution), single use, Powder free, Ambidextrous. To comply with the latest issue of SANS 11193-1. \nBox of 100 gloves\nSize: X-Large","Box of 100","Offer 1",{"$nulls":8},{"$error":"#DIV/0!"}]
[9,"RT76-01-009","Examination Goves","Glove, Examination, non-sterile, type 1(gloves made primarily from natural rubber latex),. Glove shall be blue coloured for easy identification. Powder free, For High risk use (e.g. postmortem), Textured surface, beaded cuff  Length: not less than 290mm. Ambidextrous. To comply with the latest issue of SANS 11193-1. \nLocation of Thickness measurement Single wall in mm:\nFinger (at 15mm from extreme tip) : 0.36 ± 0.04  \nPalm (at centre of palm) :    0.28 ± 0.03\nCuff (at 25 from cuff to end) : 0.20 ± 0.03\nLatex Protein levels should be less than 0.2μg per glove (Leap Method:  \nTotal Protein Levels should be less than 50μg per glove (Lowry Method)\n Box of 50 gloves\nSize: Small - Palm Width 82-85mm:  Length 290mm ","Box of 50","Offer 1",{"$nulls":8},{"$error":"#DIV/0!"}]
[10,"RT76-01-010","Examination Goves","Glove, Examination, non-sterile,type 1(gloves made primarily from natural rubber latex),. Glove shall be blue coloured for easy identification. Powder free, For High risk use (e.g. postmortem), Textured surface, beaded cuff  Length: not less than 290mm.. Ambidextrous. To comply with the latest issue of SANS 11193-1. \nLocation of Thickness measurement Single wall in mm:\nFinger (at 15mm from extreme tip) : 0.36 ± 0.04  \nPalm (at centre of palm) :    0.28 ± 0.03\nCuff (at 25 from cuff to end) : 0.20 ± 0.03\nLatex Protein levels should be less than 0.2μg per glove (Leap Method:  \nTotal Protein Levels should be less than 50μg per glove (Lowry Method)\n Box of 50 gloves\nSize: Medium - Palm Width 94-96mm:  Length 290mm ","Box of 50","Offer 1",{"$nulls":8},{"$error":"#DIV/0!"}]
[11,"RT76-01-011","Examination Goves","Glove, Examination, non-sterile, type 1(gloves made primarily from natural rubber latex),. Glove shall be blue coloured for easy identification. Powder free, For High risk use (e.g. postmortem), Textured surface, beaded cuff  Length: not less than 290mm.. Ambidextrous. To comply with the latest issue of SANS 11193-1. \nLocation of Thickness measurement Single wall in mm:\nFinger (at 15mm from extreme tip) : 0.36 ± 0.04  \nPalm (at centre of palm) :    0.28 ± 0.03\nCuff (at 25 from cuff to end) : 0.20 ± 0.03\nLatex Protein levels should be less than 0.2μg per glove (Leap Method:  \nTotal Protein Levels should be less than 50μg per glove (Lowry Method)\n Box of 50 gloves\nSize: Large - Palm Width 103-105mm:  Length 290mm ","Box of 50","Offer 1",{"$nulls":8},{"$error":"#DIV/0!"}]
[12,"RT76-01-012","Examination Goves","Glove, Examination, non-sterile,type 1(gloves made primarily from natural rubber latex). Glove shall be blue coloured for easy identification. Powder free, For High risk use (e.g. postmortem), Textured surface, beaded cuff  Length: not less than 295mm. Ambidextrous. To comply with the latest issue of SANS 11193-1. \nLocation of Thickness measurement Single wall in mm:\nFinger (at 15mm from extreme tip) : 0.36 ± 0.04  \nPalm (at centre of palm) :    0.28 ± 0.03\nCuff (at 25 from cuff to end) : 0.20 ± 0.03\nLatex Protein levels should be less than 0.2μg per glove (Leap Method:  \nTotal Protein Levels should be less than 50μg per glove (Lowry Method)\n Box of 50 gloves\nSize:X-Large - Palm Width 115-117mm:  Length 295mm ","Box of 50","Offer 1",{"$nulls":8},{"$error":"#DIV/0!"}]
[13,"RT76-01-013","Examination Goves","Glove, Examination, non-sterile, type 2 (gloves made primarily from nitrile rubber latex, polychloroprene rubber latex, styrene-butadiene rubber solution, styrene-butadiene rubber emulsion or thermoplastic-elastomer solution).Glove shall be blue coloured for easy identification. Powder free, For High risk use (e.g. postmortem), Textured surface, beaded cuff  Length: not less than 290mm. Ambidextrous. To comply with the latest issue of SANS 11193-1. \nLocation of Thickness measurement Single wall in mm:\nFinger (at 15mm from extreme tip) : 0.36 ± 0.04  \nPalm (at centre of palm) :    0.28 ± 0.03\nCuff (at 25 from cuff to end) : 0.20 ± 0.03\nLatex Protein levels should be less than 0.2μg per glove (Leap Method:  \nTotal Protein Levels should be less than 50μg per glove (Lowry Method)\n Box of 50 gloves\nSize: Small - Palm Width 82-85mm:  Length 290mm ","Box of 50","Offer 1",{"$nulls":8},{"$error":"#DIV/0!"}]
[14,"RT76-01-014","Examination Goves","Glove, Examination, non-sterile, type 2 (gloves made primarily from nitrile rubber latex, polychloroprene rubber latex, styrene-butadiene rubber solution, styrene-butadiene rubber emulsion or thermoplastic-elastomer solution). Glove shall be blue coloured for easy identification. Powder free, For High risk use (e.g. postmortem), Textured surface, beaded cuff  Length: not less than 290mm. Ambidextrous. To comply with the latest issue of SANS 11193-1. \nLocation of Thickness measurement Single wall in mm:\nFinger (at 15mm from extreme tip) : 0.36 ± 0.04  \nPalm (at centre of palm) :    0.28 ± 0.03\nCuff (at 25 from cuff to end) : 0.20 ± 0.03\nLatex Protein levels should be less than 0.2μg per glove (Leap Method:  \nTotal Protein Levels should be less than 50μg per glove (Lowry Method)\n Box of 50 gloves\nSize: Medium - Palm Width 94-96mm:  Length 290mm ","Box of 50","Offer 1",{"$nulls":8},{"$error":"#DIV/0!"}]
[15,"RT76-01-015","Examination Goves","Glove, Examination, non-sterile, type 2 (gloves made primarily from nitrile rubber latex, polychloroprene rubber latex, styrene-butadiene rubber solution, styrene-butadiene rubber emulsion or thermoplastic-elastomer solution). Glove shall be blue coloured for easy identification. Powder free, For High risk use (e.g. postmortem), Textured surface, beaded cuff  Length: not less than 290mm. Ambidextrous. To comply with the latest issue of SANS 11193-1. \nLocation of Thickness measurement Single wall in mm:\nFinger (at 15mm from extreme tip) : 0.36 ± 0.04  \nPalm (at centre of palm) :    0.28 ± 0.03\nCuff (at 25 from cuff to end) : 0.20 ± 0.03\nLatex Protein levels should be less than 0.2μg per glove (Leap Method:  \nTotal Protein Levels should be less than 50μg per glove (Lowry Method)\n Box of 50 gloves\nSize: Large - Palm Width 103-105mm:  Length 290mm ","Box of 50","Offer 1",{"$nulls":8},{"$error":"#DIV/0!"}]
[16,"RT76-01-016","Examination Goves","Glove, Examination, non-sterile, type 2 (gloves made primarily from nitrile rubber latex, polychloroprene rubber latex, styrene-butadiene rubber solution, styrene-butadiene rubber emulsion or thermoplastic-elastomer solution). Glove shall be blue coloured for easy identification. Powder free, For High risk use (e.g. postmortem), Textured surface, beaded cuff  Length: not less than 295mm. Ambidextrous. To comply with the latest issue of SANS 11193-1. \nLocation of Thickness measurement Single wall in mm:\nFinger (at 15mm from extreme tip) : 0.36 ± 0.04  \nPalm (at centre of palm) :    0.28 ± 0.03\nCuff (at 25 from cuff to end) : 0.20 ± 0.03\nLatex Protein levels should be less than 0.2μg per glove (Leap Method:  \nTotal Protein Levels should be less than 50μg per glove (Lowry Method)\n Box of 50 gloves\nSize:X-Large - Palm Width 115-117mm:  Length 295mm ","Box of 50","Offer 1",{"$nulls":8},{"$error":"#DIV/0!"}]
[17,"RT76-01-021","Examination Goves","Glove, examination, sterile, Type 1(gloves made primarily from natural rubber latex),\nSingle use.To comply with the latest issue of SANS 11193-1. Packaged as pairs in Sterile Packages. \n50 pairs of gloves. Box of 100 \nSize: Small.","Box of 100","Offer 1",{"$nulls":8},{"$error":"#DIV/0!"}]
[18,"RT76-01-022","Examination Goves","Glove, examination, sterile, Type 1(gloves made primarily from natural rubber latex),\nSingle use, To comply with the latest issue of SANS 11193-1,Packaged as pairs in Sterile Packages. \n50 pairs of gloves. Box of 100 \nSize: Medium. ","Box of 100","Offer 1",{"$nulls":8},{"$error":"#DIV/0!"}]
[19,"RT76-01-023","Examination Goves","Glove, examination, sterile, Type 1(gloves made primarily from natural rubber latex),\nSingle use,To comply with the latest issue of SANS 11193-1, Packaged as pairs in Sterile Packages.\n50 pairs of gloves. Box of 100 \n Size: Large. \n","Box of 100","Offer 1",{"$nulls":8},{"$error":"#DIV/0!"}]
[20,"RT76-01-024","Examination Goves","Glove, examination, sterile, Type 1(gloves made primarily from natural rubber latex),\nSingle use,  To comply with the latest issue of SANS 11193-1. Packaged as pairs in Sterile Packages. \n50 pairs of gloves. Box of 100 \nSize: X-Large. ","Box of 100","Offer 1",{"$nulls":8},{"$error":"#DIV/0!"}]
[21,"RT76-01-025","Examination Goves","Glove, examination, sterile, Type 2(gloves made primarily from nitrile rubber latex, polychloroprene rubber latex, styrene-butadiene rubber solution, styrene-butadiene rubber emulsion or thermoplastic-elastomer solution). Single use, Powder free, To comply with the latest issue of SANS 11193-1. Packaged as pairs in Sterile Packages. \n50 pairs of gloves. Box of 100\nSize: Small","Box of 100","Offer 1",{"$nulls":8},{"$error":"#DIV/0!"}]
[22,"RT76-01-026","Examination Goves","Glove, examination, sterile, Type 2(gloves made primarily from nitrile rubber latex, polychloroprene rubber latex, styrene-butadiene rubber solution, styrene-butadiene rubber emulsion or thermoplastic-elastomer solution), Single use, Powder free, .\nTo comply with the latest issue of SANS 11193-1. Packaged as pairs in Sterile Packages. \n 50 pairs of gloves. Box of 100\nSize: Medium.\n","Box of 100","Offer 1",{"$nulls":8},{"$error":"#DIV/0!"}]
[23,"RT76-01-027","Examination Goves","Glove, examination, sterile, Type 2(gloves made primarily from nitrile rubber latex, polychloroprene rubber latex, styrene-butadiene rubber solution, styrene-butadiene rubber emulsion or thermoplastic-elastomer solution). Single use, Powder free,\nTo comply with the latest issue of SANS 11193-1. Packaged as pairs in Sterile Packages. \n50 pairs of gloves. Box of 100\nSize: Large. ","Box of 100","Offer 1",{"$nulls":8},{"$error":"#DIV/0!"}]
[24,"RT76-01-028","Examination Goves","Glove, examination, sterile, Type 2(gloves made primarily from nitrile rubber latex, polychloroprene rubber latex, styrene-butadiene rubber solution, styrene-butadiene rubber emulsion or thermoplastic-elastomer solution). Single use, Powder free, . To comply with the latest issue of SANS 11193-1. Packaged as pairs in Sterile Packages. \n50 pairs of gloves. Box of 100.\nSize: X-Large","Box of 100","Offer 1",{"$nulls":8},{"$error":"#DIV/0!"}]
[25,"RT76-01-029","Examination Goves","Glove, examination, sterile, Type 1 (gloves made primarily from natural rubber latex), \nSingle use, Powder free, Elbow (extended) length for protection in obstetric and gynaecological procedures. Length: 450mm (min) . Thickness: Double wall. Textured surface and rolled rim cuff\nTo comply with the latest issue of SANS 11193-1. Packaged as pairs in Sterile Packages. \n25 pairs of gloves. Box of 50\nSize: Small. ","Box of 50","Offer 1",{"$nulls":8},{"$error":"#DIV/0!"}]
[26,"RT76-01-030","Examination Goves","Glove, examination, sterile, Type 1 (gloves made primarily from natural rubber latex), \nSingle use, Powder free, Elbow (extended) length for protection in obstetric and gynaecological procedures. Length: 450mm (min). Thickness: Double wall. Textured surface and rolled rim cuff\nTo comply with the latest issue of SANS 11193-1. Packaged as pairs in Sterile Packages. \n25 pairs of gloves. Box of 50\nSize: Medium. ","Box of 50","Offer 1",{"$nulls":8},{"$error":"#DIV/0!"}]
[27,"RT76-01-031","Examination Goves","Glove, examination, sterile, Type 1 (gloves made primarily from natural rubber latex), \nSingle use, Powder free, Elbow (extended) length for protection in obstetric and gynaecological procedures. Length: 450mm (min) . Thickness: Double wall. Textured surface and rolled rim cuff\nTo comply with the latest issue of SANS 11193-1. Packaged as pairs in Sterile Packages. \n25 pairs of gloves. Box of 50\nSize: Large. ","Box of 50","Offer 1",{"$nulls":8},{"$error":"#DIV/0!"}]
[28,"RT76-01-032","Examination Goves","Glove, examination, sterile, Type 1 (gloves made primarily from natural rubber latex), \nSingle use, Powder free, Elbow (extended) length for protection in obstetric and gynaecological procedures. Length: 450mm (min). Thickness: Double wall. Textured surface and rolled rim cuff\nTo comply with the latest issue of SANS 11193-1. Packaged as pairs in Sterile Packages. \n25 pairs of gloves. Box of 50\nSize: X-Large","Box of 50","Offer 1",{"$nulls":8},{"$error":"#DIV/0!"}]
[29,"RT76-01-033","Examination Goves","Glove, examination, sterile, Type 2 (gloves made primarily from nitrile rubber latex, polychloroprene rubber latex, styrene-butadiene rubber solution, styrene-butadiene rubber emulsion or thermoplastic-elastomer solution), Single use, Elbow (extended) length for protection in obstetric and gynaecological procedures. Length:  Not less than 450mm,\nThickness:  Double wall, Powder free, Textured surface and rolled cuff. One pair (1 left + 1 right) of gloves are folded & packed in a paper wallet.  The paper wallet is packed in a plastic pouch which is sealed from all sides. Inner package shall be clearly marked with the size and the designation \"left\" or \"L\" or \"right\" or \"R\" on the package, Easy donning. To comply with the latest issue of SANS 11193-1. Packaged as pairs in Sterile Packages. \n25 pairs of gloves,Box of 50\nSize:  Small. ","Box of 50","Offer 1",{"$nulls":8},{"$error":"#DIV/0!"}]
[30,"RT76-01-034","Examination Goves","Glove, examination, sterile, Type 2 (gloves made primarily from nitrile rubber latex, polychloroprene rubber latex, styrene-butadiene rubber solution, styrene-butadiene rubber emulsion or thermoplastic-elastomer solution), Single use, Elbow (extended) length for protection in obstetric and gynaecological procedures, Length:  Not less than 450mm Thickness:  Double wall, Powder free, Textured surface and rolled cuff, One pair (1 left + 1 right) of gloves are folded & packed in a paper wallet.  The paper wallet is packed in a plastic pouch which is sealed from all sides. Inner package shall be clearly marked with the size and the designation \"left\" or \"L\" or \"right\" or \"R\" on the package, Easy donning. To comply with the latest issue of SANS 11193-1\nPackaged as pairs in Sterile Packages. \n 25 pairs of gloves, Box of 50\nSize:  medium.","Box of 50","Offer 1",{"$nulls":8},{"$error":"#DIV/0!"}]
[31,"RT76-01-035","Examination Goves","Glove, examination, sterile, Type 2 (gloves made primarily from nitrile rubber latex, polychloroprene rubber latex, styrene-butadiene rubber solution, styrene-butadiene rubber emulsion or thermoplastic-elastomer solution), Single use, Elbow (extended) length for protection in obstetric and gynaecological procedures, Length:  Not less than 450mm Thickness:  Double wall, Powder free, Textured surface and rolled cuff,  One pair (1 left + 1 right) of gloves are folded & packed in a paper wallet.  The paper wallet is packed in a plastic pouch which is sealed from all sides. Inner package shall be clearly marked with the size and the designation \"left\" or \"L\" or \"right\" or \"R\" on the package, Easy donning. To comply with the latest issue of SANS 11193-1\nPackaged as pairs in Sterile Packages. \n25 pairs of gloves, Box of 50\nSize:  Large. ","Box of 50","Offer 1",{"$nulls":8},{"$error":"#DIV/0!"}]
[32,"RT76-01-036","Examination Goves","Glove, examination, sterile, Type 2 (gloves made primarily from nitrile rubber latex, polychloroprene rubber latex, styrene-butadiene rubber solution, styrene-butadiene rubber emulsion or thermoplastic-elastomer solution), Single use, Elbow (extended) length for protection in obstetric and gynaecological procedures, Length:  Not less than 450mm Thickness:  Double wall, Powder free, Textured surface and rolled cuff, One pair (1 left + 1 right) of gloves are folded & packed in a paper wallet.  The paper wallet is packed in a plastic pouch which is sealed from all sides. Inner package shall be clearly marked with the size and the designation \"left\" or \"L\" or \"right\" or \"R\" on the package, Easy donning. To comply with the latest issue of SANS 11193-1\nPackaged as pairs in Sterile Packages. \n25 pairs of gloves, Box of 50\nSize:  X-Large. ","Box of 50","Offer 1",{"$nulls":8},{"$error":"#DIV/0!"}]
[33,"NEW","Surgical Gloves","Glove, surgical, sterile, Type 1 (gloves made primarily from natural rubber latex).  \nSingle use, Powder free. To comply with the latest issue of SANS 68.  Size: 5\n50 pairs. Box of 100. Peel packed..\n",{"$nulls":10},{"$error":"#DIV/0!"}]
[34,"NEW","Surgical Gloves","Glove, surgical, sterile, Type 1 (gloves made primarily from natural rubber latex).  \nSingle use, Powder free. To comply with the latest issue of SANS 68.  Size: 5.5\n50 pairs. Box of 100. Peel packed..\n",{"$nulls":10},{"$error":"#DIV/0!"}]
[35,"RT76-02-001","Surgical Gloves","Glove, surgical, sterile, Type 1 (gloves made primarily from natural rubber latex).  \nSingle use, Powder free. To comply with the latest issue of SANS 68.  Size: 6.  \n50 pairs. Box of 100. Peel packed..\n","Box of 100","Offer 1",{"$nulls":8},{"$error":"#DIV/0!"}]
[36,"RT76-02-002","Surgical Gloves","Glove, surgical, sterile, Type 1 (gloves made primarily from natural rubber latex),  \nSingle use,  Powder free. To comply with the latest issue of SANS 68. Size: 6.5. \n50 pairs. Box of 100. Peel packed.. \n","Box of 100","Offer 1",{"$nulls":8},{"$error":"#DIV/0!"}]
[37,"RT76-02-003","Surgical Gloves","Glove, surgical, sterile, Type 1 (gloves made primarily from natural rubber latex),  \nSingle use, Powder free. To comply with the latest issue of SANS 68.  Size: 7. \n50 pairs  Box of 100. Peel packed..\n","Box of 100","Offer 1",{"$nulls":8},{"$error":"#DIV/0!"}]
[38,"RT76-02-004","Surgical Gloves","Glove, surgical, sterile, Type 1 (gloves made primarily from natural rubber latex),  \nSingle use, Powder free. To comply with the latest issue of SANS 68. Size: 7.5. \n50 pairs  Box of 100. Peel packed.. \n","Box of 100","Offer 1",{"$nulls":8},{"$error":"#DIV/0!"}]
[39,"RT76-02-005","Surgical Gloves","Glove, surgical, sterile, Type 1 (gloves made primarily from natural rubber latex),  \nSingle use, Powder free. To comply with the latest issue of SANS 68.  Size: 8. \n50 pairs  Box of 100. Peel packed.. \n","Box of 100","Offer 1",{"$nulls":8},{"$error":"#DIV/0!"}]
[40,"RT76-02-006","Surgical Gloves","Glove, surgical, sterile, Type 1 (gloves made primarily from natural rubber latex). Single use, \nPowder free. To comply with the latest issue of SANS 68. \nSize: 8.5. \n50 pairs.Box of 100. Peel packed.. \n","Box of 100","Offer 1",{"$nulls":8},{"$error":"#DIV/0!"}]
[41,"RT76-02-007","Surgical Gloves","Glove, surgical, sterile, Type 1 (gloves made primarily from natural rubber latex),  \nSingle use, Powder free. To comply with the latest issue of SANS 68. Size: 9. \n50 pairs. Box of 100. Peel packed.. ","Box of 100","Offer 1",{"$nulls":8},{"$error":"#DIV/0!"}]
[42,"RT76-02-008","Surgical Gloves","Glove, surgical, sterile, Type 1 (gloves made primarily from natural rubber latex),  \nSingle use, Powder free. To comply with the latest issue of SANS 68. Size: 9.5. \n50 pairs  Box of 100. Peel packed.. \n","Box of 100","Offer 1",{"$nulls":8},{"$error":"#DIV/0!"}]
[43,null,"Surgical Gloves","Glove, surgical, sterile, Type 2 (gloves made primarily from nitrile rubber latex, polychloroprene rubber latex, styrene-butadiene rubber solution, styrene-butadiene rubber emulsion or thermoplastic-elastomer solution). Single use, Powder free, One pair (1 left + 1 right) of gloves are folded & packed in a paper wallet.  The paper wallet is packed in a plastic pouch which is sealed from all sides. Inner package shall be clearly marked with the size and the designation \"left\" or \"L\" or \"right\" or \"R\" on the package. Easy donning. To comply with the latest issue of SANS 68\n Size: 5\n50 pairs  Box of 100. Peel packed. \n","Box of 100",{"$nulls":9},{"$error":"#DIV/0!"}]
[44,"RT76-02-009","Surgical Gloves","Glove, surgical, sterile, Type 2 (gloves made primarily from nitrile rubber latex, polychloroprene rubber latex, styrene-butadiene rubber solution, styrene-butadiene rubber emulsion or thermoplastic-elastomer solution). Single use, Powder free, One pair (1 left + 1 right) of gloves are folded & packed in a paper wallet.  The paper wallet is packed in a plastic pouch which is sealed from all sides. Inner package shall be clearly marked with the size and the designation \"left\" or \"L\" or \"right\" or \"R\" on the package. Easy donning. To comply with the latest issue of SANS 68\n Size: 5.5. \n50 pairs  Box of 100. Peel packed. \n","Box of 100","Offer 1",{"$nulls":8},{"$error":"#DIV/0!"}]
[45,"RT76-02-010","Surgical Gloves","Glove, surgical, sterile, Type 2 (gloves made primarily from nitrile rubber latex, polychloroprene rubber latex, styrene-butadiene rubber solution, styrene-butadiene rubber emulsion or thermoplastic-elastomer solution), Single use, Powder free, One pair (1 left + 1 right) of gloves are folded & packed in a paper wallet.  The paper wallet is packed in a plastic pouch which is sealed from all sides. Inner package shall be clearly marked with the size and the designation \"left\" or \"L\" or \"right\" or \"R\" on the package. Easy donning. To comply with the latest issue of SANS 68\nSize: 6. \n50 pairs  Box of 100. Peel packed. \n","Box of 100","Offer 1",{"$nulls":8},{"$error":"#DIV/0!"}]
[46,"RT76-02-011","Surgical Gloves","Glove, surgical, sterile, Type 2 (gloves made primarily from nitrile rubber latex, polychloroprene rubber latex, styrene-butadiene rubber solution, styrene-butadiene rubber emulsion or thermoplastic-elastomer solution). Single use, Powder free, One pair (1 left + 1 right) of gloves are folded & packed in a paper wallet.  The paper wallet is packed in a plastic pouch which is sealed from all sides. Inner package shall be clearly marked with the size and the designation \"left\" or \"L\" or \"right\" or \"R\" on the package. Easy donning. To comply with the latest issue of SANS 68\n Size: 6.5.\n50 pairs  Box of 100. Peel packed. \n","Box of 100","Offer 1",{"$nulls":8},{"$error":"#DIV/0!"}]
[47,"RT76-02-012","Surgical Gloves","Glove, surgical, sterile, Type 2 (gloves made primarily from nitrile rubber latex, polychloroprene rubber latex, styrene-butadiene rubber solution, styrene-butadiene rubber emulsion or thermoplastic-elastomer solution). Single use, Powder free, One pair (1 left + 1 right) of gloves are folded & packed in a paper wallet.  The paper wallet is packed in a plastic pouch which is sealed from all sides. Inner package shall be clearly marked with the size and the designation \"left\" or \"L\" or \"right\" or \"R\" on the package. Easy donning. To comply with the latest issue of SANS 68\nSize: 7. \n50 pairs  Box of 100. Peel packed. \n","Box of 100","Offer 1",{"$nulls":8},{"$error":"#DIV/0!"}]
[48,"RT76-02-013","Surgical Gloves","Glove, surgical, sterile, Type 2 (gloves made primarily from nitrile rubber latex, polychloroprene rubber latex, styrene-butadiene rubber solution, styrene-butadiene rubber emulsion or thermoplastic-elastomer solution). Single use, Powder free, One pair (1 left + 1 right) of gloves are folded & packed in a paper wallet.  The paper wallet is packed in a plastic pouch which is sealed from all sides. Inner package shall be clearly marked with the size and the designation \"left\" or \"L\" or \"right\" or \"R\" on the package. Easy donning. To comply with the latest issue of SANS 68\nSize: 7.5\n50 pairs  Box of 100. Peel packed. \n","Box of 100","Offer 1",{"$nulls":8},{"$error":"#DIV/0!"}]
[49,"RT76-02-014","Surgical Gloves","Glove, surgical, sterile, Type 2 (gloves made primarily from nitrile rubber latex, polychloroprene rubber latex, styrene-butadiene rubber solution, styrene-butadiene rubber emulsion or thermoplastic-elastomer solution). Single use, Powder free, One pair (1 left + 1 right) of gloves are folded & packed in a paper wallet.  The paper wallet is packed in a plastic pouch which is sealed from all sides. Inner package shall be clearly marked with the size and the designation \"left\" or \"L\" or \"right\" or \"R\" on the package. Easy donning. To comply with the latest issue of SANS 68\nSize: 8. \n50 pairs  Box of 100. Peel packed. ","Box of 100","Offer 1",{"$nulls":8},{"$error":"#DIV/0!"}]
[50,"RT76-02-015","Surgical Gloves","Glove, surgical, sterile, Type 2 (gloves made primarily from nitrile rubber latex, polychloroprene rubber latex, styrene-butadiene rubber solution, styrene-butadiene rubber emulsion or thermoplastic-elastomer solution). Single use, Powder free, One pair (1 left + 1 right) of gloves are folded & packed in a paper wallet.  The paper wallet is packed in a plastic pouch which is sealed from all sides. Inner package shall be clearly marked with the size and the designation \"left\" or \"L\" or \"right\" or \"R\" on the package. Easy donning. To comply with the latest issue of SANS 68\n Size: 8.5. \n50 pairs  Box of 100. Peel packed. \n","Box of 100","Offer 1",{"$nulls":8},{"$error":"#DIV/0!"}]
[51,"RT76-02-016","Surgical Gloves","Glove, surgical, sterile, Type 2 (gloves made primarily from nitrile rubber latex, polychloroprene rubber latex, styrene-butadiene rubber solution, styrene-butadiene rubber emulsion or thermoplastic-elastomer solution). Single use, Powder free, One pair (1 left + 1 right) of gloves are folded & packed in a paper wallet.  The paper wallet is packed in a plastic pouch which is sealed from all sides. Inner package shall be clearly marked with the size and the designation \"left\" or \"L\" or \"right\" or \"R\" on the package. Easy donning. To comply with the latest issue of SANS 68\nSize: 9.\n50 pairs  Box of 100. Peel packed. \n","Box of 100","Offer 1",{"$nulls":8},{"$error":"#DIV/0!"}]
[52,"RT76-02-017","Surgical Gloves","Glove, surgical, sterile, Type 2 (gloves made primarily from nitrile rubber latex, polychloroprene rubber latex, styrene-butadiene rubber solution, styrene-butadiene rubber emulsion or thermoplastic-elastomer solution). Single use, Powder free, One pair (1 left + 1 right) of gloves are folded & packed in a paper wallet.  The paper wallet is packed in a plastic pouch which is sealed from all sides. Inner package shall be clearly marked with the size and the designation \"left\" or \"L\" or \"right\" or \"R\" on the package. Easy donning. To comply with the latest issue of SANS 68\nSize: 9.5.\n50 pairs  Box of 100. Peel packed.. \n","Box of 100","Offer 1",{"$nulls":8},{"$error":"#DIV/0!"}]
[53,"NEW","Surgical Gloves","Glove, surgical, sterile, Type 1 (gloves made primarily from natural rubber latex),  \nSingle use, Powder free, Microtextured, for neuro, ophthalmic and reconstructive procedures.  \nOne pair (1 left + 1 right) of gloves are folded & packed in a paper wallet.  The paper wallet is packed in a plastic pouch which is sealed from all sides. Inner package shall be clearly marked with the size and the designation \"left\" or \"L\" or \"right\" or \"R\" on the package.  Easy donning,\nTo comply with the latest issue of SANS 68. \nSize: 5\n50 pairs  Box of 100. Peel packed.. \n","Box of 100",{"$nulls":9},{"$error":"#DIV/0!"}]
[54,"RT76-02-018","Surgical Gloves","Glove, surgical, sterile, Type 1 (gloves made primarily from natural rubber latex),  \nSingle use, Powder free, Microtextured, for neuro, ophthalmic and reconstructive procedures.  \nOne pair (1 left + 1 right) of gloves are folded & packed in a paper wallet.  The paper wallet is packed in a plastic pouch which is sealed from all sides. Inner package shall be clearly marked with the size and the designation \"left\" or \"L\" or \"right\" or \"R\" on the package.  Easy donning,\nTo comply with the latest issue of SANS 68. \nSize: 5.5\n50 pairs  Box of 100. Peel packed.. \n","Box of 100","Offer 1",{"$nulls":8},{"$error":"#DIV/0!"}]
[55,"RT76-02-019","Surgical Gloves","Glove, surgical, sterile, Type 1 (gloves made primarily from natural rubber latex),  \nSingle use, Powder free, Microtextured, for neuro, ophthalmic and reconstructive procedures.  \nOne pair (1 left + 1 right) of gloves are folded & packed in a paper wallet.  The paper wallet is packed in a plastic pouch which is sealed from all sides. Inner package shall be clearly marked with the size and the designation \"left\" or \"L\" or \"right\" or \"R\" on the package.  Easy donning,\nTo comply with the latest issue of SANS 68. \nSize: 6. \n50 pairs  Box of 100. Peel packed.. \n","Box of 100","Offer 1",{"$nulls":8},{"$error":"#DIV/0!"}]
[56,"RT76-02-020","Surgical Gloves","Glove, surgical, sterile, Type 1 (gloves made primarily from natural rubber latex),  \nSingle use, Powder free, Microtextured, for neuro, ophthalmic and reconstructive procedures.  \nOne pair (1 left + 1 right) of gloves are folded & packed in a paper wallet.  The paper wallet is packed in a plastic pouch which is sealed from all sides. Inner package shall be clearly marked with the size and the designation \"left\" or \"L\" or \"right\" or \"R\" on the package.  Easy donning,\nTo comply with the latest issue of SANS 68. \nSize: 6.5\n50 pairs  Box of 100. Peel packed.. \n","Box of 100","Offer 1",{"$nulls":8},{"$error":"#DIV/0!"}]
[57,"RT76-02-021","Surgical Gloves","Glove, surgical, sterile, Type 1 (gloves made primarily from natural rubber latex),  \nSingle use, Powder free, Microtextured, for neuro, ophthalmic and reconstructive procedures.  \nOne pair (1 left + 1 right) of gloves are folded & packed in a paper wallet.  The paper wallet is packed in a plastic pouch which is sealed from all sides. Inner package shall be clearly marked with the size and the designation \"left\" or \"L\" or \"right\" or \"R\" on the package.  Easy donning,\nTo comply with the latest issue of SANS 68. \nSize: 7\n50 pairs  Box of 100. Peel packed..\n","Box of 100","Offer 1",{"$nulls":8},{"$error":"#DIV/0!"}]
[58,"RT76-02-022","Surgical Gloves","Glove, surgical, sterile, Type 1 (gloves made primarily from natural rubber latex). Single use,\nPowder free, Microtextured, for neuro, ophthalmic and reconstructive procedures. One pair (1 left + 1 right) of gloves are folded & packed in a paper wallet.  The paper wallet is packed in a plastic pouch which is sealed from all sides. Inner package shall be clearly marked with the size and the designation \"left\" or \"L\" or \"right\" or \"R\" on the package.  Easy donning, To comply with the latest issue of SANS 68. \nSize: 7.5. \n50 pairs  Box of 100. Peel packed.. ","Box of 100","Offer 1",{"$nulls":8},{"$error":"#DIV/0!"}]
[59,"RT76-02-023","Surgical Gloves","Glove, surgical, sterile, Type 1 (gloves made primarily from natural rubber latex). Single use,\nPowder free, Microtextured, for neuro, ophthalmic and reconstructive procedures.  \nOne pair (1 left + 1 right) of gloves are folded & packed in a paper wallet.  The paper wallet is packed in a plastic pouch which is sealed from all sides. Inner package shall be clearly marked with the size and the designation \"left\" or \"L\" or \"right\" or \"R\" on the package.  Easy donning,\nTo comply with the latest issue of SANS 68. \nSize: 8\n50 pairs  Box of 100. Peel packed.. \n","Box of 100","Offer 1",{"$nulls":8},{"$error":"#DIV/0!"}]
[60,"RT76-02-024","Surgical Gloves","Glove, surgical, sterile, Type 1 (gloves made primarily from natural rubber latex),  \nSingle use, Powder free, Microtextured, for neuro, ophthalmic and reconstructive procedures.  \nOne pair (1 left + 1 right) of gloves are folded & packed in a paper wallet.  The paper wallet is packed in a plastic pouch which is sealed from all sides. Inner package shall be clearly marked with the size and the designation \"left\" or \"L\" or \"right\" or \"R\" on the package.  Easy donning,\nTo comply with the latest issue of SANS 68. \nSize: 8.5\n50 pairs  Box of 100. Peel packed..\n","Box of 100","Offer 1",{"$nulls":8},{"$error":"#DIV/0!"}]
[61,"RT76-02-025","Surgical Gloves","Glove, surgical, sterile, Type 1 (gloves made primarily from natural rubber latex). Single use,\nPowder free, Microtextured, for neuro, ophthalmic and reconstructive procedures.  One pair (1 left + 1 right) of gloves are folded & packed in a paper wallet.  The paper wallet is packed in a plastic pouch which is sealed from all sides. Inner package shall be clearly marked with the size and the designation \"left\" or \"L\" or \"right\" or \"R\" on the package.  Easy donning, Packaged as pairs in Sterile Packages. To comply with the latest issue of SANS 68. \nSize: 9. \n50 pairs  Box of 100. Peel packed.. ","Box of 100","Offer 1",{"$nulls":8},{"$error":"#DIV/0!"}]
[62,"NEW","Surgical Gloves","Glove, surgical, sterile, Type 1 (gloves made primarily from natural rubber latex). Single use,\nPowder free, Microtextured, for neuro, ophthalmic and reconstructive procedures.  One pair (1 left + 1 right) of gloves are folded & packed in a paper wallet.  The paper wallet is packed in a plastic pouch which is sealed from all sides. Inner package shall be clearly marked with the size and the designation \"left\" or \"L\" or \"right\" or \"R\" on the package.  Easy donning, Packaged as pairs in Sterile Packages. To comply with the latest issue of SANS 68. \nSize: 9. 5\n50 pairs  Box of 100. Peel packed.. ","Box of 100",{"$nulls":9},{"$error":"#DIV/0!"}]
[63,"NEW","Surgical Gloves","Glove, surgical, sterile, Type 2 (gloves made primarily from nitrile rubber latex, polychloroprene rubber latex, styrene-butadiene rubber solution, styrene-butadiene rubber emulsion or thermoplastic-elastomer solution). Single use, Powder free. Microtextured, for neuro, ophthalmic and reconstructive procedures.  One pair (1 left + 1 right) of gloves are folded & packed in a paper wallet.  The paper wallet is packed in a plastic pouch which is sealed from all sides. Inner package shall be clearly marked with the size and the designation \"left\" or \"L\" or \"right\" or \"R\" on the package.  Easy donning.  To comply with the latest issue of SANS 68.\nSize: 5\n50 pairs  Box of 100. Peel packed.. ","Box of 100",{"$nulls":9},{"$error":"#DIV/0!"}]
[64,"RT76-02-026","Surgical Gloves","Glove, surgical, sterile, Type 2 (gloves made primarily from nitrile rubber latex, polychloroprene rubber latex, styrene-butadiene rubber solution, styrene-butadiene rubber emulsion or thermoplastic-elastomer solution). Single use, Powder free. Microtextured, for neuro, ophthalmic and reconstructive procedures.  One pair (1 left + 1 right) of gloves are folded & packed in a paper wallet.  The paper wallet is packed in a plastic pouch which is sealed from all sides. Inner package shall be clearly marked with the size and the designation \"left\" or \"L\" or \"right\" or \"R\" on the package.  Easy donning.  To comply with the latest issue of SANS 68.\nSize: 5.5\n50 pairs  Box of 100. Peel packed.. ","Box of 100","Offer 1",{"$nulls":8},{"$error":"#DIV/0!"}]
[65,"RT76-02-027","Surgical Gloves","Glove, surgical, sterile, Type 2 (gloves made primarily from nitrile rubber latex, polychloroprene rubber latex, styrene-butadiene rubber solution, styrene-butadiene rubber emulsion or thermoplastic-elastomer solution). Single use, Powder free. Microtextured, for neuro, ophthalmic and reconstructive procedures.  One pair (1 left + 1 right) of gloves are folded & packed in a paper wallet.  The paper wallet is packed in a plastic pouch which is sealed from all sides. Inner package shall be clearly marked with the size and the designation \"left\" or \"L\" or \"right\" or \"R\" on the package.  Easy donning.  To comply with the latest issue of SANS 68. \nSize: 6.\n50 pairs  Box of 100. Peel packed.. ","Box of 100","Offer 1",{"$nulls":8},{"$error":"#DIV/0!"}]
[66,"RT76-02-028","Surgical Gloves","Glove, surgical, sterile, Type 2 (gloves made primarily from nitrile rubber latex, polychloroprene rubber latex, styrene-butadiene rubber solution, styrene-butadiene rubber emulsion or thermoplastic-elastomer solution). Single use, Powder free. Microtextured, for neuro, ophthalmic and reconstructive procedures.  One pair (1 left + 1 right) of gloves are folded & packed in a paper wallet.  The paper wallet is packed in a plastic pouch which is sealed from all sides. Inner package shall be clearly marked with the size and the designation \"left\" or \"L\" or \"right\" or \"R\" on the package.  Easy donning. To comply with the latest issue of SANS 68. \nSize: 6.5. \n50 pairs  Box of 100. Peel packed..","Box of 100","Offer 1",{"$nulls":8},{"$f":"AVERAGE(M70:N70)","v":{"$error":"#DIV/0!"}}]
[67,"RT76-02-029","Surgical Gloves","Glove, surgical, sterile, Type 2 (gloves made primarily from nitrile rubber latex, polychloroprene rubber latex, styrene-butadiene rubber solution, styrene-butadiene rubber emulsion or thermoplastic-elastomer solution). Single use, Powder free. Microtextured, for neuro, ophthalmic and reconstructive procedures.  One pair (1 left + 1 right) of gloves are folded & packed in a paper wallet.  The paper wallet is packed in a plastic pouch which is sealed from all sides. Inner package shall be clearly marked with the size and the designation \"left\" or \"L\" or \"right\" or \"R\" on the package.  Easy donning. To comply with the latest issue of SANS 68. \nSize: 7. \n50 pairs  Box of 100. Peel packed.. ","Box of 100","Offer 1",{"$nulls":8},{"$error":"#DIV/0!"}]
[68,"RT76-02-030","Surgical Gloves","Glove, surgical, sterile, Type 2 (gloves made primarily from nitrile rubber latex, polychloroprene rubber latex, styrene-butadiene rubber solution, styrene-butadiene rubber emulsion or thermoplastic-elastomer solution). Single use, Powder free. Microtextured, for neuro, ophthalmic and reconstructive procedures.  One pair (1 left + 1 right) of gloves are folded & packed in a paper wallet.  The paper wallet is packed in a plastic pouch which is sealed from all sides. Inner package shall be clearly marked with the size and the designation \"left\" or \"L\" or \"right\" or \"R\" on the package.  Easy donning. To comply with the latest issue of SANS 68.\nSize: 7.5. \n50 pairs  Box of 100. Peel packed.. ","Box of 100","Offer 1",{"$nulls":8},{"$error":"#DIV/0!"}]
[69,"RT76-02-031","Surgical Gloves","Glove, surgical, sterile, Type 2 (gloves made primarily from nitrile rubber latex, polychloroprene rubber latex, styrene-butadiene rubber solution, styrene-butadiene rubber emulsion or thermoplastic-elastomer solution). Single use, Powder free. Microtextured, for neuro, ophthalmic and reconstructive procedures.  One pair (1 left + 1 right) of gloves are folded & packed in a paper wallet.  The paper wallet is packed in a plastic pouch which is sealed from all sides. Inner package shall be clearly marked with the size and the designation \"left\" or \"L\" or \"right\" or \"R\" on the package.  Easy donning. To comply with the latest issue of SANS 68. \nSize: 8. \n50 pairs  Box of 100. Peel packed.. ","Box of 100","Offer 1",{"$nulls":8},{"$error":"#DIV/0!"}]
[70,"RT76-02-032","Surgical Gloves","Glove, surgical, sterile, Type 2 (gloves made primarily from nitrile rubber latex, polychloroprene rubber latex, styrene-butadiene rubber solution, styrene-butadiene rubber emulsion or thermoplastic-elastomer solution). Single use, Powder free. Microtextured, for neuro, ophthalmic and reconstructive procedures. One pair (1 left + 1 right) of gloves are folded & packed in a paper wallet.  The paper wallet is packed in a plastic pouch which is sealed from all sides. Inner package shall be clearly marked with the size and the designation \"left\" or \"L\" or \"right\" or \"R\" on the package.  Easy donning. To comply with the latest issue of SANS 68. \nSize: 8.5. \n50 pairs  Box of 100. Peel packed..","Box of 100","Offer 1",{"$nulls":8},{"$error":"#DIV/0!"}]
[71,"RT76-02-033","Surgical Gloves","Glove, surgical, sterile, Type 2 (gloves made primarily from nitrile rubber latex, polychloroprene rubber latex, styrene-butadiene rubber solution, styrene-butadiene rubber emulsion or thermoplastic-elastomer solution). Single use, Powder free. Microtextured, for neuro, ophthalmic and reconstructive procedures.  One pair (1 left + 1 right) of gloves are folded & packed in a paper wallet.  The paper wallet is packed in a plastic pouch which is sealed from all sides. Inner package shall be clearly marked with the size and the designation \"left\" or \"L\" or \"right\" or \"R\" on the package.  Easy donning. To comply with the latest issue of SANS 68. \nSize: 9. \n50 pairs  Box of 100. Peel packed..","Box of 100","Offer 1",{"$nulls":8},{"$error":"#DIV/0!"}]
[72,"RT76-02-034","Surgical Gloves","Glove, surgical, sterile, Type 2 (gloves made primarily from nitrile rubber latex, polychloroprene rubber latex, styrene-butadiene rubber solution, styrene-butadiene rubber emulsion or thermoplastic-elastomer solution). Single use, Powder free. Microtextured, for neuro, ophthalmic and reconstructive procedures.  One pair (1 left + 1 right) of gloves are folded & packed in a paper wallet.  The paper wallet is packed in a plastic pouch which is sealed from all sides. Inner package shall be clearly marked with the size and the designation \"left\" or \"L\" or \"right\" or \"R\" on the package.  Easy donning. To comply with the latest issue of SANS 68. \nSize: 9.5. \n50 pairs  Box of 100. Peel packed.. ","Box of 100","Offer 1",{"$nulls":8},{"$error":"#DIV/0!"}]
[73,"NEW","Surgical Gloves","Glove, surgical, sterile, Type 1 (gloves made primarily from natural rubber latex). Powder free, Must be a double gloving system, consisting of a coloured inner glove and a standard outer glove. Two complete sets of correct size surgical gloves in one package. with ease of donning, the second pair, to prevent the gloves from \"sticking”. Perforations in the outer glove should be noticeable i.e. show Perforations/tears in the outer glove via, gel leaking, or different colour inner glove showing the site of the tear. To comply with the latest issue of SANS 68,  \nSize on packaging: Inner glove Size: 6. Outer glove Size: 6.5.\n 25 Sets of double gloves. \nBox of 100 Peel packed..","Box of 100",{"$nulls":9},{"$error":"#DIV/0!"}]
[74,"NEW","Surgical Gloves","Glove, surgical, sterile, Type 1 (gloves made primarily from natural rubber latex).  Powder free, Must be a double gloving system, consisting of a coloured inner glove and a standard outer glove. Two complete sets of correct size surgical gloves in one package. with ease of donning, the second pair, to prevent the gloves from \"sticking”. Perforations in the outer glove should be noticeable i.e. show Perforations/tears in the outer glove via, gel leaking, or different colour inner glove showing the site of the tear. To comply with the latest issue of SANS 68,  \nSize on packaging: Inner glove Size: 6.5. Outer glove Size: 7\n 25 Sets of double gloves. \nBox of 100 Peel packed..","Box of 100",{"$nulls":9},{"$error":"#DIV/0!"}]
[75,"NEW","Surgical Gloves","Glove, surgical, sterile,Type 1 (gloves made primarily from natural rubber latex). . Powder free, Must be a double gloving system, consisting of a coloured inner glove and a standard outer glove. Two complete sets of correct size surgical gloves in one package. with ease of donning, the second pair, to prevent the gloves from \"sticking”. Perforations in the outer glove should be noticeable i.e. show Perforations/tears in the outer glove via, gel leaking, or different colour inner glove showing the site of the tear. To comply with the latest issue of SANS 68,  \nSize on packaging: Inner glove Size: 7. Outer glove Size: 7.5.\n 25 Sets of double gloves. \nBox of 100 Peel packed..","Box of 100",{"$nulls":9},{"$error":"#DIV/0!"}]
[76,"NEW","Surgical Gloves","Glove, surgical, sterile, Type 1 (gloves made primarily from natural rubber latex). . Powder free, Must be a double gloving system, consisting of a coloured inner glove and a standard outer glove. Two complete sets of correct size surgical gloves in one package. with ease of donning, the second pair, to prevent the gloves from \"sticking”. Perforations in the outer glove should be noticeable i.e. show Perforations/tears in the outer glove via, gel leaking, or different colour inner glove showing the site of the tear. To comply with the latest issue of SANS 68,  \nSize on packaging: Inner glove Size: 7.5. Outer glove Size: 8\n 25 Sets of double gloves. \nBox of 100 Peel packed..","Box of 100",{"$nulls":9},{"$error":"#DIV/0!"}]
[77,"NEW","Surgical Gloves","Glove, surgical, sterile, Type 1 (gloves made primarily from natural rubber latex). Powder free, Must be a double gloving system, consisting of a coloured inner glove and a standard outer glove. Two complete sets of correct size surgical gloves in one package. with ease of donning, the second pair, to prevent the gloves from \"sticking”. Perforations in the outer glove should be noticeable i.e. show Perforations/tears in the outer glove via, gel leaking, or different colour inner glove showing the site of the tear. To comply with the latest issue of SANS 68,  \nSize on packaging: Inner glove Size: 8. Outer glove Size: 8.5.\n 25 Sets of double gloves. \nBox of 100 Peel packed..","Box of 100",{"$nulls":9},{"$error":"#DIV/0!"}]
[78,"NEW","Surgical Gloves","Glove, surgical, sterile,Type 1 (gloves made primarily from natural rubber latex). Powder free, Must be a double gloving system, consisting of a coloured inner glove and a standard outer glove. Two complete sets of correct size surgical gloves in one package. with ease of donning, the second pair, to prevent the gloves from \"sticking”. Perforations in the outer glove should be noticeable i.e. show Perforations/tears in the outer glove via, gel leaking, or different colour inner glove showing the site of the tear. To comply with the latest issue of SANS 68,  \nSize on packaging: Inner glove Size: 8.5. Outer glove Size: 9\n 25 Sets of double gloves. \nBox of 100 Peel packed..","Box of 100",{"$nulls":9},{"$error":"#DIV/0!"}]
[79,"NEW","Surgical Gloves","Glove, surgical, sterile, Type 1 (gloves made primarily from natural rubber latex).  Powder free, Must be a double gloving system, consisting of a coloured inner glove and a standard outer glove. Two complete sets of correct size surgical gloves in one package. with ease of donning, the second pair, to prevent the gloves from \"sticking”. Perforations in the outer glove should be noticeable i.e. show Perforations/tears in the outer glove via, gel leaking, or different colour inner glove showing the site of the tear. To comply with the latest issue of SANS 68,  \nSize on packaging: Inner glove Size: 9. Outer glove Size: 9.5.\n 25 Sets of double gloves. \nBox of 100 Peel packed..","Box of 100",{"$nulls":9},{"$error":"#DIV/0!"}]
[80,"RT76-02-035","Surgical Gloves","Glove, surgical, sterile, Type 2 (gloves made primarily from nitrile rubber latex, polychloroprene rubber latex, styrene-butadiene rubber solution, styrene-butadiene rubber emulsion or thermoplastic-elastomer solution). Powder free, Must be a double gloving system, consisting of a coloured inner glove and a standard outer glove. Two complete sets of correct size surgical gloves in one package. with ease of donning, the second pair, to prevent the gloves from \"sticking”. Perforations in the outer glove should be noticeable i.e. show Perforations/tears in the outer glove via, gel leaking, or different colour inner glove showing the site of the tear. To comply with the latest issue of SANS 68,  \nSize on packaging: Inner glove Size: 6. Outer glove Size: 6.5.\n 25 Sets of double gloves. \nBox of 100 Peel packed..","Box of 100","Offer 1",{"$nulls":8},{"$error":"#DIV/0!"}]
[81,"RT76-02-036","Surgical Gloves","Glove, surgical, sterile, Type 2 (gloves made primarily from nitrile rubber latex, polychloroprene rubber latex, styrene-butadiene rubber solution, styrene-butadiene rubber emulsion or thermoplastic-elastomer solution). Powder free, Must be a double gloving system, consisting of a coloured inner glove and a standard outer glove. Two complete sets of correct size surgical gloves in one package,with ease of donning, the second pair, to prevent the gloves from \"sticking”. Perforations in the outer glove should be noticeable i.e. show Perforations/tears in the outer glove via, gel leaking, or different colour inner glove showing the site of the tear. To comply with the latest issue of SANS 68. \nSize on packaging: Inner glove size: 6.5 Outer glove Size: 7 \n25 Sets of double gloves. \nBox of 100 Peel packed..","Box of 100","Offer 1",{"$nulls":8},{"$error":"#DIV/0!"}]
[82,"RT76-02-037","Surgical Gloves","Glove, surgical, sterile, Type 2 (gloves made primarily from nitrile rubber latex, polychloroprene rubber latex, styrene-butadiene rubber solution, styrene-butadiene rubber emulsion or thermoplastic-elastomer solution). Powder free, Must be a double gloving system, consisting of a coloured inner glove and a standard outer glove. Two complete sets of correct size surgical gloves in one package, with ease of donning, the second pair, to prevent the gloves from \"sticking”. Perforations in the outer glove should be noticeable i.e. show Perforations/tears in the outer glove via, gel leaking, or different colour inner glove showing the site of the tear. To comply with the latest issue of SANS 68. Packaged as pairs in Sterile Packages. Size on packaging: Inner glove size: 7. Outer glove Size: 7.5. 25 Sets of double gloves. \nBox of 100.","Box of 100","Offer 1",{"$nulls":8},{"$error":"#DIV/0!"}]
[83,"RT76-02-038","Surgical Gloves","Glove, surgical, sterile, Type 2 (gloves made primarily from nitrile rubber latex, polychloroprene rubber latex, styrene-butadiene rubber solution, styrene-butadiene rubber emulsion or thermoplastic-elastomer solution). Powder free, Must be a double gloving system, consisting of a coloured inner glove and a standard outer glove. Two complete sets of correct size surgical gloves in one package, with ease of donning, the second pair, to prevent the gloves from \"sticking”. Perforations in the outer glove should be noticeable i.e. show Perforations/tears in the outer glove via, gel leaking, or different colour inner glove showing the site of the tear. To comply with the latest issue of SANS 68. \nSize on packaging: Inner glove size: 7.5. Outer glove Size: 8.\n 25 Sets of double gloves. \nBox of 100 Peel packed.","Box of 100","Offer 1",{"$nulls":8},{"$error":"#DIV/0!"}]
[84,"RT76-02-039","Surgical Gloves","Glove, surgical, sterile, Type 2 (gloves made primarily from nitrile rubber latex, polychloroprene rubber latex, styrene-butadiene rubber solution, styrene-butadiene rubber emulsion or thermoplastic-elastomer solution). Powder free, Must be a double gloving system, consisting of a coloured inner glove and a standard outer glove. Two complete sets of correct size surgical gloves in one package, with ease of donning, the second pair, to prevent the gloves from \"sticking”. Perforations in the outer glove should be noticeable i.e. show Perforations/tears in the outer glove via, gel leaking, or different colour inner glove showing the site of the tear. To comply with the latest issue of SANS 68. \nSize on packaging:Inner glove size: 8. Outer glove Size: 8.5.\n 25 Sets of double gloves. \nBox of 100 Peel packed.","Box of 100","Offer 1",{"$nulls":8},{"$error":"#DIV/0!"}]
[85,"RT76-02-040","Surgical Gloves","Glove, surgical, sterile, Type 2 (gloves made primarily from nitrile rubber latex, polychloroprene rubber latex, styrene-butadiene rubber solution, styrene-butadiene rubber emulsion or thermoplastic-elastomer solution). Powder free, Must be a double gloving system, consisting of a coloured inner glove and a standard outer glove. Two complete sets of correct size surgical gloves in one package with ease of donning, the second pair, to prevent the gloves from \"sticking”. Perforations in the outer glove should be noticeable i.e. show Perforations/tears in the outer glove via, gel leaking, or different colour inner glove showing the site of the tear. To comply with the latest issue of SANS 68, \nSize on packaging:Inner glove size: 8.5. Outer glove Size: 9. \n25 Sets of double gloves.\nBox of 100. Peel packed.","Box of 100","Offer 1",{"$nulls":8},{"$error":"#DIV/0!"}]
[86,"RT76-02-041","Surgical Gloves","Glove, surgical, sterile, Type 2 (gloves made primarily from nitrile rubber latex, polychloroprene rubber latex, styrene-butadiene rubber solution, styrene-butadiene rubber emulsion or thermoplastic-elastomer solution). Powder free, Must be a double gloving system, consisting of a coloured inner glove and a standard outer glove. Two complete sets of correct size surgical gloves in one package, with ease of donning, the second pair, to prevent the gloves from \"sticking”. Perforations in the outer glove should be noticeable i.e. show Perforations/tears in the outer glove via, gel leaking, or different colour inner glove showing the site of the tear. To comply with the latest issue of SANS 68. \nSize on packaging: Inner glove size: 9. Outer glove Size: 9.5. \n25 Sets of double gloves. \nBox of 100. Peel packed.","Box of 100","Offer 1",{"$nulls":8},{"$error":"#DIV/0!"}]
[87,"RT76-02-042","Surgical Gloves","Glove, clear plastic, surgical, sterile, Type 2 (gloves made primarily from nitrile rubber latex, polychloroprene rubber latex, styrene-butadiene rubber solution, styrene-butadiene rubber emulsion or thermoplastic-elastomer solution). Powder free, Ambidextrous, Sterility indicator shall appear on the outer packaging and glove pouch. Two gloves per packet with paper backing. Packed in a dispensing box in plastic pouches. Easy donning. To comply with the latest issue of SANS 68. \nSize: Small. \n50 pairs of gloves. \nBox of 100. Peel packed.","Box of 100","Offer 1",{"$nulls":8},{"$error":"#DIV/0!"}]
[88,"RT76-02-043","Surgical Gloves","Glove, clear plastic, surgical, sterile, Type 2 (gloves made primarily from nitrile rubber latex, polychloroprene rubber latex, styrene-butadiene rubber solution, styrene-butadiene rubber emulsion or thermoplastic-elastomer solution). Powder free, Ambidextrous, Sterility indicator shall appear on the outer packaging and glove pouch. Two gloves per packet with paper backing. Packed in a dispensing box in plastic pouches. Easy donning. To comply with the latest issue of SANS 68. \nSize: Medium. \n50 pairs of gloves. \nBox of 100. Peel packed..","Box of 100","Offer 1",{"$nulls":8},{"$error":"#DIV/0!"}]
[89,"RT76-02-044","Surgical Gloves","Glove, clear plastic, surgical, sterile, Type 2 (gloves made primarily from nitrile rubber latex, polychloroprene rubber latex, styrene-butadiene rubber solution, styrene-butadiene rubber emulsion or thermoplastic-elastomer solution). Powder free, Ambidextrous, Sterility indicator shall appear on the outer packaging and glove pouch. Two gloves per packet with paper backing. Packed in a dispensing box in plastic pouches. Easy donning. To comply with the latest issue of SANS 68.\n Size: Large.\n 50 pairs of gloves. \nBox of 100. Peel packed..","Box of 100","Offer 1",{"$nulls":8},{"$error":"#DIV/0!"}]
[90,"RT76-02-045","Surgical Gloves","Glove, clear plastic, surgical, sterile, Type 2 (gloves made primarily from nitrile rubber latex, polychloroprene rubber latex, styrene-butadiene rubber solution, styrene-butadiene rubber emulsion or thermoplastic-elastomer solution). Powder free, Ambidextrous, Sterility indicator shall appear on the outer packaging and glove pouch. Two gloves per packet with paper backing. Packed in a dispensing box in plastic pouches. Easy donning. To comply with the latest issue of SANS 68. \nSize: X-Large.\n50 pairs of gloves. \nBox of 100. Peel packed.. ","Box of 100","Offer 1",{"$nulls":8},{"$error":"#DIV/0!"}]